Cogmind - Beta 9.5 @@@ ROGUE MODE // 2020.04.04 @ 22:11:56 Player: Trione Result: Destroyed by Tracker with Immobilizer Performance ------------- Evolutions (4) 2000 Regions Visited (13) 2600 Robots Destroyed (209) 1045 Value Destroyed (7279) 7279 Prototype IDs (222) 4440 Alien Tech Used (1) 200 Bonus (3748) 3748 TOTAL SCORE: 21312 Bonus ------- High Alert Combat Kills 117 Follower Combat Kills 25 Met Data Miner 300 Used Data Conduit 3000 Pursued by Intercept 500 Friendly Fire -194 Cogmind --------- Core Integrity 0/850 Matter 198/300 Energy 100/100 System Corruption 15% Temperature Cool (0) Movement Core (1150) Ox22 Location -6/Factory Parts ------- > --- POWER (2) -------- (None) > --- PROPULSION (2) --- (None) > --- UTILITY (9) ------ Large Storage Unit Large Storage Unit High-capacity Storage Unit Advanced Signal Interpreter Advanced Dynamic Insulation System > --- WEAPON (3) ------- (None) > --- INVENTORY (24) --- Experimental Cooling System Quantum Shading Machine Experimental Sensor Array Advanced Targeting Computer Ghost Barrier Immobilizer EMDS Plasma Cannon KE Penetrator Linked Autogun Heavy Rocket Launcher Improved Datajack Experimental Remote Datajack Greatsword Peak State ------------ > --- POWER ------------ Light Angular Momentum Engine Micro Fission Core > --- PROPULSION ------- Cooled Antigrav System Cooled Antigrav System > --- UTILITY ---------- Large Storage Unit Large Storage Unit Large Storage Unit High-capacity Storage Unit Quantum Shading Machine Experimental Sensor Array Advanced Signal Interpreter Centrium Medium Armor Plating System Mapper > --- WEAPON ----------- Heavy Ion Cannon Plasma Cannon KE Penetrator > --- INVENTORY -------- Wheel Armored Wheel Experimental Cooling System Large Storage Unit Advanced Targeting Computer Armor Integrity Analyzer Improved Heavy Armor Plating Damper Plating Improved Shield Generator Deep Network Scanner Ghost Barrier Advanced Dynamic Insulation System System Backup Module Immobilizer Proton Cannon EMDS Linked Autogun Improved Proton Missile Launcher Heavy Rocket Launcher Improved Datajack Experimental Remote Datajack Axe Greatsword Spear [Rating: 99] Favorites ----------- Power Improved Deuterium Engine Engine Improved Deuterium Engine Power Core Micro Fission Core Reactor Antimatter Reactor Propulsion Armored Wheel Treads Improved Treads Wheel Armored Wheel Hover Unit Cooled Antigrav System Utility Large Storage Unit Device Experimental Sensor Array Storage Large Storage Unit Processor Improved Signal Interpreter Hackware Hacking Suite Protection Medium Reactive Plating Weapon Axe Energy Gun Spread Laser Energy Cannon Plasma Cannon Ballistic Gun Assault Rifle Ballistic Cannon Gauss Cannon Launcher Shock Bomb Launcher Special Weapon Remote Datajack Impact Weapon Hammer Slashing Weapon Axe Piercing Weapon Spear Special Melee Weapon Improved Datajack Build | -11 -10 -10 -10 -9 -8 -7 -7 -7 -7 -7 -7 -6 -6 ------- Run | Scr Mat Min Exi Min Mat Fac Was Fac Low Low Dat Pro Fac Slots Evolved 8 | . . . . . 4 2 . . . . . . 2 Power 1 | . . . . . . . . . . . . . 1 Propulsion . | . . . . . . . . . . . . . . Utility 7 | . . . . . 4 2 . . . . . . 1 Weapon . | . . . . . . . . . . . . . . Parts Attached 429 | 6 4 20 1 23 44 60 15 59 21 40 12 9 115 Power 14 | 1 . 1 . 2 2 3 . . 1 3 . . 1 Engine 10 | 1 . 1 . 2 1 3 . . . 1 . . 1 Core 2 | . . . . . 1 . . . . 1 . . . Reactor 2 | . . . . . . . . . 1 1 . . . Propulsion 54 | 2 1 8 . 7 6 6 4 . 2 2 . . 16 Treads 13 | . . 3 . 4 . 2 . . 1 1 . . 2 Leg . | . . . . . . . . . . . . . . Wheel 35 | 2 1 5 . 3 6 4 4 . 1 1 . . 8 Hover 6 | . . . . . . . . . . . . . 6 Flight . | . . . . . . . . . . . . . . Utility 154 | 1 3 . 1 . 12 21 6 27 10 13 7 4 49 Device 68 | . . . . . 1 9 2 17 5 6 2 1 25 Storage 14 | 1 2 . 1 . 4 1 1 1 1 . 2 . . Processor 7 | . . . . . . 2 1 2 . . . . 2 Hackware 3 | . . . . . . 1 . . . . . . 2 Protection 62 | . 1 . . . 7 8 2 7 4 7 3 3 20 Artifact . | . . . . . . . . . . . . . . Weapon 207 | 2 . 11 . 14 24 30 5 32 8 22 5 5 49 Energy Gun 30 | 1 . 5 . 6 9 3 . . . . . . 6 Energy Cannon 54 | . . . . . 1 12 3 11 2 9 1 1 14 Ballistic Gun 18 | 1 . 3 . 1 3 4 . . . 1 . 1 4 Ballistic Cannon 6 | . . . . . . 1 . 1 1 2 1 . . Launcher 28 | . . 3 . 6 5 . . 2 3 6 . . 3 Special Weapon 5 | . . . . . . 1 . 1 1 1 . . 1 Impact Weapon 1 | . . . . . . . . . . 1 . . . Slashing Weapon 34 | . . . . 1 4 8 2 8 . 2 2 2 5 Piercing Weapon 15 | . . . . . . . . 5 1 . 1 1 7 Special Melee Weapon 16 | . . . . . 2 1 . 4 . . . . 9 Unidentified Prototypes 7 | . . . . . 2 1 . . . . . 1 3 Parts Lost 61 | . . 3 . 9 12 3 2 1 2 8 . . 21 Power 10 | . . 1 . 2 2 1 . . . 2 . . 2 Propulsion 16 | . . 1 . 3 3 . 1 . 1 1 . . 6 Utility 20 | . . . . . 5 2 1 1 1 3 . . 7 Weapon 15 | . . 1 . 4 2 . . . . 2 . . 6 Highest Loss Streak 18 | . . 1 . 4 6 3 2 1 2 5 . . 18 Average Slot Usage (%) 93 | . 98 99 90 81 98 99 97 99 97 90 76 85 84 Engine 6 | . 14 13 14 13 6 4 7 7 4 3 . . 3 Core 2 | . . . . . 2 2 . . . 1 7 7 5 Wheel 13 | . 28 27 28 21 17 14 14 15 11 6 7 7 6 Device 7 | . . . . . . 7 18 9 13 11 8 7 10 Storage 28 | . 16 28 18 14 35 30 30 30 31 38 25 28 24 Processor 5 | . . . . . . 5 8 10 7 7 7 7 6 Protection 8 | . 10 . . . 17 15 . 8 6 2 5 14 8 Energy Gun 3 | . 14 13 14 21 8 2 . . . . . . . Energy Cannon 4 | . . . . . 2 7 14 4 4 7 . 7 3 Ballistic Gun 2 | . 14 14 14 1 3 . . . . 1 . . . Slashing Weapon 4 | . . . . 2 3 4 . 5 7 1 6 6 6 Piercing Weapon 1 | . . . . . . . . 2 2 2 5 . 1 Naked Turns . | . . . . . . . . . . . . . . Heaviest Build 161 | 12 40 43 88 91 95 126 113 145 161 161 144 115 156 Greatest Support 70 | 32 32 40 26 40 24 42 28 28 70 70 28 28 60 Greatest Overweight (x) 39 | . 1 2 3 5 4 8 8 5 5 5 39 4 14 Average Overweight (x) 3 | . . 1 2 2 3 3 3 4 3 3 4 3 4 Largest Inventory Capacity 48 | 6 16 16 24 24 48 30 36 30 36 36 36 30 30 Average Capacity 27 | 5 7 16 21 24 28 28 30 30 31 36 26 30 29 Most Carried 36 | 6 16 16 22 24 28 30 30 30 36 36 35 30 30 Average Carried 26 | 3 7 15 18 22 24 27 29 29 30 35 19 29 29 Final Capacity 36 | 6 16 16 24 24 28 30 30 30 36 36 30 30 24 Final Carried 36 | 6 16 16 22 24 27 30 30 30 36 35 30 30 17 Class Distribution -------------------- 85% | Hauler-Mutant 10% | Mutant 4% | Scavenger-Mutant Dominant Class ---------------- Mutant | -10/Materials Mutant | -10/Mines Hauler-Mutant | -10/Exiles Hauler-Mutant | -9/Mines Hauler-Mutant | -8/Materials Hauler-Mutant | -7/Factory Hauler-Mutant | -7/Waste Hauler-Mutant | -7/Factory Hauler-Mutant | -7/Lower Caves Hauler-Mutant | -7/Lower Caves Scavenger-Mutant | -7/Data Miner Hauler-Mutant | -6/Proximity Caves Hauler-Mutant | -6/Factory Resources | -11 -10 -10 -10 -9 -8 -7 -7 -7 -7 -7 -7 -6 -6 ----------- Run | Scr Mat Min Exi Min Mat Fac Was Fac Low Low Dat Pro Fac Matter Collected 5857 | 262 53 340 . 328 643 692 217 829 262 964 147 100 1020 Remotely . | . . . . . . . . . . . . . . Salvage Created 9971 | 100 372 227 . 778 1500 723 1412 1223 627 898 255 60 1796 Parts 422 | 3 18 6 . 52 86 37 20 74 16 35 5 2 68 Haulers Intercepted 6 | . 1 . . . 3 1 . 1 . . . . . Recyclers Shooed 9 | . . 1 . . 2 1 . 3 . . . . 2 Parts Field Recycled . | . . . . . . . . . . . . . . Retrieved Matter . | . . . . . . . . . . . . . . Parts Self-Destructed 37 | . . . . . . . . . 9 28 . . . Prevented 23 | . . . . . . . . . 6 17 . . . Kills | -11 -10 -10 -10 -9 -8 -7 -7 -7 -7 -7 -7 -6 -6 ------- Run | Scr Mat Min Exi Min Mat Fac Was Fac Low Low Dat Pro Fac Combat Hostiles Destroyed 142 | . 6 12 . 18 30 8 5 16 7 21 4 . 15 Melee 19 | . . . . . . 2 . 4 . . . . 13 Guns 29 | . 4 6 . 8 9 . . . . 2 . . . Cannons 23 | . . . . . 5 4 5 4 1 2 . . 2 AOE 59 | . 2 6 . 9 14 . . 8 5 15 . . . Classes Destroyed 20 | 1 4 2 . 4 1 2 1 . 2 2 . 1 . Worker 17 | . . 1 . 1 3 1 . 7 . . . . 4 Builder 6 | . 1 . . 3 1 . . 1 . . . . . Tunneler 1 | . . . . 1 . . . . . . . . . Hauler 6 | . 1 . . . 3 1 . 1 . . . . . Recycler 14 | 1 . 1 . . 1 2 . 4 . . . . 5 Minesweeper 2 | . . . . . . . . . 1 1 . . . Mechanic 1 | . . . . . . . . . . 1 . . . Operator 5 | . . . . . 1 1 . 3 . . . . . Watcher 11 | . 1 . . . 3 3 . 3 . . . . 1 Swarmer 29 | . . . . 5 6 1 . 7 . 10 . . . Grunt 52 | . 6 1 . 10 15 1 . 5 6 5 . . 3 Brawler 3 | . . . . . . 1 . . . 2 . . . Duelist 3 | . . . . 1 . . . . 1 1 . . . Researcher 1 | . . . . . . . . . . . . 1 . Sentry 17 | . . . . 2 9 2 . 1 . 2 . . 1 Hunter 1 | . . . . . . . . . . 1 . . . Programmer 9 | . . . . . . 3 . 3 . . . . 3 Compactor 5 | . . . . . . . 5 . . . . . . Enhanced Grunt 4 | . . . . . . . . . . . 4 . . Tracker 4 | . . . . . . . . . . . . . 4 Combat Programmer 4 | . . . . . . . . . . . . . 4 Packrat 1 | . . . . . . . . . 1 . . . . Samaritan 1 | . . . . . . . . . 1 . . . . Assembled 11 | . . 11 . . . . . . . . . . . Best Kill Streak 16 | 1 3 7 . 7 16 3 2 10 4 8 5 . 5 Combat Bots Only 12 | . 3 7 . 4 12 2 2 7 4 7 4 . 3 Max Kills in Single Turn 4 | 1 2 2 . 3 4 1 1 4 1 3 2 1 1 Gunslinging . | . . . . . . . . . . . . . . Exploded 3 | . 1 2 . 2 3 . . 3 1 2 . . . Melee 1 | . . . . . . 1 . 1 . . . . 1 Uniques/NPCs Destroyed 1 | . . . . . . . . . . . 1 . . Data Miner (-7/Data Miner) Combat | -11 -10 -10 -10 -9 -8 -7 -7 -7 -7 -7 -7 -6 -6 -------- Run | Scr Mat Min Exi Min Mat Fac Was Fac Low Low Dat Pro Fac Damage Taken 13352 | . 233 497 . 896 1515 740 208 746 279 2109 . . 6129 Core 1536 | . 40 33 . 161 153 52 . 89 5 153 . . 850 Absorbed by Shields 515 | . . . . . . . . . . . . . 515 Reduced by Siege Mode 139 | . . . . . . . . . . 139 . . . Core Remaining (%) 58 | 100 . . . 6 72 . . . . . . 57 . Volleys Fired 529 | 2 23 41 . 45 90 64 43 33 17 65 . 2 104 Largest 3 | 2 2 2 . 2 2 2 2 2 1 2 . 1 3 Hottest 178 | 60 60 90 . 110 121 160 160 160 69 138 . 69 178 Shots Fired 740 | 4 46 74 . 65 118 103 87 41 18 76 . 2 106 Gun 296 | 4 46 66 . 54 67 36 . . . 5 . . 18 Cannon 353 | . . . . . 32 67 87 36 8 40 . 2 81 Launcher 84 | . . 8 . 11 19 . . 5 10 27 . . 4 Special 7 | . . . . . . . . . . 4 . . 3 Kinetic 138 | 2 23 38 . . 25 29 . 1 . 17 . . 3 Thermal 203 | . . 14 . 1 32 43 76 19 . 16 . . 2 Explosive 39 | . . 8 . 8 12 . . 3 . 8 . . . Electromagnetic 353 | 2 23 14 . 56 49 31 11 18 18 31 . 2 98 Robot Hit Streak 30 | 1 9 10 . 18 30 9 17 7 13 23 . 8 16 Robot Miss Streak 7 | 2 2 7 . 3 4 4 1 3 . 5 . . 2 Penetration Max 1 | . . . . . . . . . . 1 . . 1 Secondary Targets . | . . . . . . . . . . . . . . Shots Hit Robots 631 | 2 31 46 . 55 74 60 70 55 13 41 1 3 180 Core Hits 415 | 1 19 35 . 48 87 19 21 40 16 40 14 1 74 Critical Hits 13 | . . . . . . 3 1 3 1 1 . . 4 Critical Kills 5 | . . . . . . 1 . 1 1 1 . . 1 Critical Parts Destroyed 6 | . . . . . . 2 . 2 . . . . 2 Melee Attacks 311 | . . . . . 11 12 7 76 10 9 2 22 162 Impact . | . . . . . . . . . . . . . . Slashing 218 | . . . . . 11 11 7 54 9 2 2 21 101 Piercing 80 | . . . . . . . . 20 1 7 . 1 51 Sneak Attacks 38 | . . . . . 1 1 . 20 4 . 1 1 10 Combat Hostiles 1 | . . . . . . . . . . . . . 1 Follow-up Attacks 12 | . . . . . . . . 3 . . . . 9 Damage Inflicted 22942 | 28 488 703 . 1613 3391 1462 1661 3738 923 2290 805 168 5672 Guns 2736 | 28 329 388 . 639 749 425 . . . 89 . . 89 Cannons 5614 | . . . . . 543 973 1661 792 196 713 . 80 656 Explosions 7114 | . 159 315 . 974 1992 . . 710 360 1488 652 . 464 Melee 7478 | . . . . . 107 64 . 2236 367 . 153 88 4463 Ramming . | . . . . . . . . . . . . . . Kinetic 1276 | 13 96 159 . . 212 341 . 33 . 349 . . 73 Thermal 4384 | . 159 120 . 190 569 526 1639 526 . 376 . . 279 Explosive 3541 | . . 315 . 688 1530 . . 407 . 480 . . 121 Electromagnetic 6263 | 15 233 109 . 735 973 531 22 536 556 1085 652 80 736 Impact . | . . . . . . . . . . . . . . Slashing 5444 | . . . . . 107 64 . 1742 293 . 153 . 3085 Piercing 2034 | . . . . . . . . 494 74 . . 88 1378 Highest Corruption 15 | . . 2 2 2 . 3 9 14 11 8 5 . 15 Average Corruption 6 | . . 2 2 2 . 2 7 11 10 5 3 . 2 Corruption Purged 20 | . . . . . . . . 3 3 4 5 . 5 Effects 332 | . . 10 3 7 . 24 29 150 38 40 12 . 19 Message Errors 59 | . . 2 1 . . 9 6 21 5 6 3 . 6 Matter Fused 65 | . . . . . . 6 4 32 6 12 1 . 4 Heat Flow Errors 37 | . . 3 1 3 . . 2 15 7 5 . . 1 Energy Discharges 36 | . . . 1 . . 2 2 18 1 6 4 . 2 Data Loss (minor) 37 | . . 1 . 1 . 5 2 16 5 2 3 . 2 Data Loss (major) 17 | . . . . . . . 1 11 1 3 1 . . Misfires 6 | . . . . . . . 1 3 1 1 . . . Alerts 3 | . . . . . . . . 3 . . . . . Misdirections 27 | . . . . . . . . 18 9 . . . . Targeting Errors 44 | . . 4 . 2 . 2 11 13 3 5 . . 4 Weapon Failures 1 | . . . . 1 . . . . . . . . . Overload Shots . | . . . . . . . . . . . . . . Overflow Damage 1239 | . . . . 17 50 33 . 510 165 139 . . 325 Projectiles 88 | . . . . . . 33 . 23 . 29 . . 3 Explosions 235 | . . . . 17 50 . . 58 . 110 . . . Melee 916 | . . . . . . . . 429 165 . . . 322 Knockbacks 5 | . . . . . . 2 . . . 3 . . . Impact . | . . . . . . . . . . . . . . Kinetic 5 | . . . . . . 2 . . . 3 . . . Secondary . | . . . . . . . . . . . . . . Self-Inflicted Damage 733 | . 30 36 . 4 102 . . 172 26 265 . . 98 Shots 31 | . 1 2 . 1 4 . . 3 4 12 . . 4 Rammed . | . . . . . . . . . . . . . . Targets Rammed . | . . . . . . . . . . . . . . Kicked . | . . . . . . . . . . . . . . Crushed . | . . . . . . . . . . . . . . Highest Temperature 441 | 20 136 270 263 237 213 441 195 372 273 266 . 60 298 Average Temperature 91 | 15 54 80 133 55 59 165 69 92 91 90 . 30 64 Received Heat Transfer 1784 | . 132 86 . 327 594 102 . 117 81 231 . . 114 Effects 17 | . . . . . . 12 . . . 2 . . 3 Shutdowns 2 | . . . . . . 2 . . . . . . . Energy Bleed 2 | . . . . . . 2 . . . . . . . Interference 8 | . . . . . . 3 . . . 2 . . 3 Matter Decay 1 | . . . . . . 1 . . . . . . . Short Circuit 2 | . . . . . . 2 . . . . . . . Damage (major) 2 | . . . . . . 2 . . . . . . . Siege Activations 2 | . . . . . . . . . . 2 . . . Total Turns 64 | . . . . . . . . . . 64 . . . Longest Duration 39 | . . . . . . . . . . 39 . . . Robots Corrupted 13 | . . . . 1 1 2 . 1 1 2 4 . 1 Combat Hostiles 11 | . . . . 1 1 2 . . 1 2 4 . . Parts Fried 33 | . . . . 2 6 2 . 3 6 6 2 1 5 Impact Corruptions . | . . . . . . . . . . . . . . Robots Melted . | . . . . . . . . . . . . . . Combat Hostiles . | . . . . . . . . . . . . . . Parts Melted 3 | . . . . . 1 2 . . . . . . . Heat Transferred 7164 | . 150 155 . 225 914 1000 3200 798 . 485 . . 237 Parts Sabotaged . | . . . . . . . . . . . . . . Parts Stolen . | . . . . . . . . . . . . . . Parts Stripped . | . . . . . . . . . . . . . . Power Chain Reactions 16 | . 3 . . 2 3 . . 2 . 4 . . 2 Missiles Intercepted . | . . . . . . . . . . . . . . Alert | -11 -10 -10 -10 -9 -8 -7 -7 -7 -7 -7 -7 -6 -6 ------- Run | Scr Mat Min Exi Min Mat Fac Was Fac Low Low Dat Pro Fac Peak Influence 713 | 5 197 68 . 150 713 175 16 456 . . . . 317 Average Influence 112 | 2 87 27 . 57 285 56 8 160 . . . . 88 Maximum Alert Level 3 | . . . . . 3 . . 2 . . . . 1 Low Security (%) 80 | 100 100 100 . 100 47 100 100 54 . . . . 80 Level 1 19 | . . . . . 25 . . 41 . . . . 19 Level 2 . | . . . . . 25 . . 4 . . . . . Level 3 . | . . . . . 1 . . . . . . . . Level 4 . | . . . . . . . . . . . . . . Level 5 . | . . . . . . . . . . . . . . High Security . | . . . . . . . . . . . . . . Max Security . | . . . . . . . . . . . . . . Squads Dispatched 29 | . 1 . . . 4 5 . 7 . 1 . . 11 Investigation 6 | . . . . . 3 1 . 2 . . . . . Extermination 9 | . . . . . . 3 . 4 . . . . 2 Reinforcement 4 | . 1 . . . 1 1 . 1 . . . . . Assault 1 | . . . . . . . . . . 1 . . . Garrison . | . . . . . . . . . . . . . . Intercept 9 | . . . . . . . . . . . . . 9 Construction Impeded 1 | . . . . . 1 . . . . . . . . Haulers Reinforced 1 | . . . . . . 1 . . . . . . . Stealth | -11 -10 -10 -10 -9 -8 -7 -7 -7 -7 -7 -7 -6 -6 --------- Run | Scr Mat Min Exi Min Mat Fac Was Fac Low Low Dat Pro Fac Distress Signals 3 | . . . . . 1 1 . 1 . . . . . Communications Jammed . | . . . . . . . . . . . . . . Distress Signals . | . . . . . . . . . . . . . . Times Spotted 212 | . 15 15 . 19 44 21 5 30 7 28 . . 28 Peak Tracking Total 10 | . 3 5 . 4 10 5 3 5 4 8 . . 7 Tactical Retreats 21 | . 3 2 . 1 9 1 . 2 . 2 . . 1 Traps | -11 -10 -10 -10 -9 -8 -7 -7 -7 -7 -7 -7 -6 -6 ------- Run | Scr Mat Min Exi Min Mat Fac Was Fac Low Low Dat Pro Fac Traps Triggered 15 | . . . . . 3 2 . 5 . . 3 . 2 Indirectly 3 | . . . . . . . . . . . 3 . . Trap Hack Attempts . | . . . . . . . . . . . . . . Triggered . | . . . . . . . . . . . . . . Disarmed . | . . . . . . . . . . . . . . Reprogrammed . | . . . . . . . . . . . . . . Reused 1 | . . . . . . . . . . . 1 . . Traps Extracted . | . . . . . . . . . . . . . . Installed 7 | . . . . . . . . . . . 7 . . Triggered 2 | . . . . . . . . . . 2 . . . Machines | -11 -10 -10 -10 -9 -8 -7 -7 -7 -7 -7 -7 -6 -6 ---------- Run | Scr Mat Min Exi Min Mat Fac Was Fac Low Low Dat Pro Fac Machines Disabled 25 | . 1 1 . . 4 1 . 11 . 1 . . 6 Max in Single Turn 5 | . 1 1 . . 1 1 . 5 . 1 . . 2 Garrison Access 3 | . . . . . . . . 1 . . . . 2 Machines Sabotaged . | . . . . . . . . . . . . . . Garrisons Compromised . | . . . . . . . . . . . . . . Overloaded Fab Kills . | . . . . . . . . . . . . . . Fab Network Shutdowns . | . . . . . . . . . . . . . . Hacking | -11 -10 -10 -10 -9 -8 -7 -7 -7 -7 -7 -7 -6 -6 --------- Run | Scr Mat Min Exi Min Mat Fac Was Fac Low Low Dat Pro Fac Machines Accessed 53 | . 7 2 . . 10 12 . 11 . . 4 . 7 Terminals 32 | . 6 2 . . 8 8 . 5 . . . . 3 Fabricators 5 | . . . . . . 2 . 1 . . . . 2 Repair Stations 1 | . . . . . . 1 . . . . . . . Recycling Units 5 | . 1 . . . 1 . . 3 . . . . . Scanalyzers 3 | . . . . . 1 1 . 1 . . . . . Garrison Access 3 | . . . . . . . . 1 . . . . 2 Total Hacks 144 | . 13 9 . . 30 26 . 25 . . 24 . 17 Successful 88 | . 8 4 . . 18 17 . 9 . . 24 . 8 Failed 55 | . 5 5 . . 11 9 . 16 . . . . 9 Catastrophic 11 | . 1 1 . . 1 3 . 4 . . . . 1 Database Lockouts 1 | . . . . . 1 . . . . . . . . Manual 74 | . 13 9 . . 24 11 . 9 . . . . 8 Terminals 79 | . 12 9 . . 24 14 . 11 . . . . 9 Fabricators 14 | . . . . . . 5 . 4 . . . . 5 Repair Stations 2 | . . . . . . 2 . . . . . . . Recycling Units 8 | . 1 . . . 2 . . 5 . . . . . Scanalyzers 13 | . . . . . 4 5 . 4 . . . . . Garrison Access 4 | . . . . . . . . 1 . . . . 3 Terminal Hacks 40 | . 3 2 . . 6 3 . 1 . . 24 . 1 Record 11 | . . . . . . . . . . . 11 . . Part Schematic 8 | . 1 . . . 2 . . . . . 4 . 1 Robot Schematic 6 | . . . . . . . . . . . 6 . . Prototype ID Bank 4 | . . . . . . 1 . . . . 3 . . Terminal Index 2 | . 1 . . . . 1 . . . . . . . Unreport Threat 2 | . . . . . 2 . . . . . . . . Locate Traps 1 | . . . . . . . . 1 . . . . . Recall Investigation 1 | . . . . . . 1 . . . . . . . Zone Layout 5 | . 1 2 . . 2 . . . . . . . . Fabricator Hacks 7 | . . . . . . 4 . 2 . . . . 1 Load Schematic 4 | . . . . . . 2 . 1 . . . . 1 Build 3 | . . . . . . 2 . 1 . . . . . Repair Station Hacks 2 | . . . . . . 2 . . . . . . . Scan Component 1 | . . . . . . 1 . . . . . . . Repair 1 | . . . . . . 1 . . . . . . . Recycling Unit Hacks 2 | . 1 . . . 1 . . . . . . . . Retrieve Components 2 | . 1 . . . 1 . . . . . . . . Scanalyzer 13 | . . . . . 4 5 . 4 . . . . . Insert Component 6 | . . . . . 2 2 . 2 . . . . . Analyze 7 | . . . . . 2 3 . 2 . . . . . Garrison Access Hacks 3 | . . . . . . . . 1 . . . . 2 Seal Access 3 | . . . . . . . . 1 . . . . 2 Unauthorized Hacks 65 | . 12 4 . . 16 11 . 10 . . . . 12 Terminals 20 | . 4 2 . . 7 3 . . . . . . 4 Track 8 | . 1 2 . . 4 1 . . . . . . . Assimilate 2 | . . . . . . . . . . . . . 2 Botnet 9 | . 3 . . . 3 2 . . . . . . 1 Operators 1 | . . . . . . . . . . . . . 1 Fabricators 1 | . . . . . . . . 1 . . . . . Report 1 | . . . . . . . . 1 . . . . . Repair Stations . | . . . . . . . . . . . . . . Recycling Units . | . . . . . . . . . . . . . . Scanalyzers . | . . . . . . . . . . . . . . Garrison Access . | . . . . . . . . . . . . . . Data Cores Recovered 2 | . . . . . 1 1 . . . . . . . Used 1 | . . . . . 1 . . . . . . . . Hacking Detections 37 | . 3 1 . . 8 11 . 9 . . . . 5 Full Trace Events 1 | . . . . . . 1 . . . . . . . Feedback Events . | . . . . . . . . . . . . . . Feedback Blocked . | . . . . . . . . . . . . . . Robot Schematics Acquired 6 | . . . . . . . . . . . 6 . . Robots Built . | . . . . . . . . . . . . . . Matter . | . . . . . . . . . . . . . . Time . | . . . . . . . . . . . . . . Total Robot Build Rating . | . . . . . . . . . . . . . . Part Schematics Acquired 14 | . 1 . . . 4 2 . 2 . . 4 . 1 Parts Built 3 | . . . . . . 2 . 1 . . . . . Matter 372 | . . . . . . 248 . 124 . . . . . Time 186 | . . . . . . 124 . 62 . . . . . Total Part Build Rating 6 | . . . . . . 4 . 2 . . . . . Parts Repaired 1 | . . . . . . 1 . . . . . . . Time 44 | . . . . . . 44 . . . . . . . Parts Recycled . | . . . . . . . . . . . . . . Recycled Matter . | . . . . . . . . . . . . . . Retrieved Matter . | . . . . . . . . . . . . . . Retrieved Components 12 | . 2 . . . 10 . . . . . . . . Parts Scanalyzed 6 | . . . . . 2 2 . 2 . . . . . Part Schematics Acquired 6 | . . . . . 2 2 . 2 . . . . . Parts Damaged . | . . . . . . . . . . . . . . Bothacking | -11 -10 -10 -10 -9 -8 -7 -7 -7 -7 -7 -7 -6 -6 ------------ Run | Scr Mat Min Exi Min Mat Fac Was Fac Low Low Dat Pro Fac Used RIF Installer . | . . . . . . . . . . . . . . Robots Hacked 4 | . . . . . . 1 . 1 . . . . 2 Non-combat 2 | . . . . . . 1 . 1 . . . . . Combat 2 | . . . . . . . . . . . . . 2 Robot Hacks Applied 10 | . . . . . . 1 . 1 . . . . 8 parse_system 8 | . . . . . . . . . . . . . 8 find_chute 1 | . . . . . . 1 . . . . . . . find_recycling 1 | . . . . . . . . 1 . . . . . Relay Couplers Released . | . . . . . . . . . . . . . . Robots Rewired 2 | . . . . . . . . . . 2 . . . Allies Hacked 2 | . . . . . . . . . . . . . 2 Hacks Repelled . | . . . . . . . . . . . . . . Allies | -11 -10 -10 -10 -9 -8 -7 -7 -7 -7 -7 -7 -6 -6 -------- Run | Scr Mat Min Exi Min Mat Fac Was Fac Low Low Dat Pro Fac Total Allies 5 | . . 1 . . . . . . . 2 . . 2 Largest Group 2 | . . 1 . . . . . . . 2 . . 2 Highest-Rated Group 36 | . . 31 . . . . . . . 36 . . 36 Highest-Rated Ally 31 | . . 31 . . . . . . . 20 . . 26 Total Orders 15 | . . . . . . . . . . . . . 15 STAY 2 | . . . . . . . . . . . . . 2 GOTO 5 | . . . . . . . . . . . . . 5 ROAM 1 | . . . . . . . . . . . . . 1 FOLLOW 7 | . . . . . . . . . . . . . 7 Ally Attacks 9 | . . 3 . . . . . . . 6 . . . Total Damage 128 | . . 65 . . . . . . . 63 . . . Kills 1 | . . 1 . . . . . . . . . . . Allies Corrupted . | . . . . . . . . . . . . . . Allies Melted . | . . . . . . . . . . . . . . Intel | -11 -10 -10 -10 -9 -8 -7 -7 -7 -7 -7 -7 -6 -6 ------- Run | Scr Mat Min Exi Min Mat Fac Was Fac Low Low Dat Pro Fac Robot Analysis Total 115 | . . . . . . . . . . . 115 . . Derelict Logs Recovered 6 | . . 1 . 2 . . . . 2 1 . . . Drone Launches . | . . . . . . . . . . . . . . Drone Recoveries . | . . . . . . . . . . . . . . Exploration | -11 -10 -10 -10 -9 -8 -7 -7 -7 -7 -7 -7 -6 -6 ------------- Run | Scr Mat Min Exi Min Mat Fac Was Fac Low Low Dat Pro Fac Turns Passed 18242 | 70 550 1089 356 1032 1642 2625 663 3386 864 1475 1383 693 2414 Spaces Moved 10955 | 51 444 918 302 650 970 1662 302 2109 533 805 783 414 1012 Core 16 | 2 . . . . . . . . . . 14 . . Treads 188 | . . 5 . 87 . 24 . . 28 24 . . 20 Legs . | . . . . . . . . . . . . . . Wheels 10536 | 49 444 913 302 563 970 1638 302 2109 505 781 769 414 777 Hover 215 | . . . . . . . . . . . . . 215 Flight . | . . . . . . . . . . . . . . Fastest Speed 50 | 50 90 90 90 120 115 120 125 125 135 140 120 130 96 Average Speed 130 | 98 99 99 111 130 119 127 126 135 139 142 168 139 143 Slowest Speed 2000 | 100 100 160 120 200 125 197 170 145 200 200 2000 140 280 Overloaded Moves . | . . . . . . . . . . . . . . Propulsion Burnouts . | . . . . . . . . . . . . . . Robots Hopped . | . . . . . . . . . . . . . . Cave-ins Triggered 2 | . . . . . . . 1 . . . . . 1 Exploration Rate (%) 58 | 3 61 96 61 88 82 31 78 35 61 67 77 55 24 Regions Visited 13 Branch Regions 7 Pre-discovered Areas 27 | . . . . . . . . . . 1 26 . . Known Exits Taken 6 | . . . . . 1 . . 1 1 1 1 1 . Unknown Exits Taken 5 | 1 1 1 1 1 . . . . . . . . . Scrap Searched 7 | . . 2 . . . . . . 2 2 . 1 . Spaces Dug 173 | . . 18 . . 21 9 7 34 6 20 1 20 37 Terrain Destroyed 705 | . 13 54 . 53 126 9 7 180 6 129 32 20 76 Melee 132 | . . . . . 10 9 7 34 6 8 1 20 37 Projectile 10 | . . . . . . . . 3 . 6 . . 1 AOE 563 | . 13 54 . 53 116 . . 143 . 115 31 . 38 Actions | -11 -10 -10 -10 -9 -8 -7 -7 -7 -7 -7 -7 -6 -6 --------- Run | Scr Mat Min Exi Min Mat Fac Was Fac Low Low Dat Pro Fac Total 13582 | 64 511 1017 321 760 1317 2049 490 2468 610 1040 848 486 1601 Wait 963 | . 25 31 . 31 149 199 97 159 17 97 . 29 129 Move 10941 | 50 443 917 301 649 969 1662 300 2108 532 804 782 413 1011 Hop . | . . . . . . . . . . . . . . Pick Up 202 | 6 12 4 17 10 35 27 9 11 9 15 20 4 23 Fast Attach 41 | 6 1 . 1 1 . 2 2 8 1 1 6 3 9 Attach 109 | . . 3 . 8 24 8 6 3 3 10 4 4 36 Detach 51 | . . . . 1 5 3 4 2 2 2 5 2 25 Swap 280 | . 3 17 . 14 20 50 7 48 17 29 2 3 70 Drop 138 | . 4 4 2 1 14 22 14 17 2 8 20 5 25 Fire 529 | 2 23 41 . 45 90 64 43 33 17 65 . 2 104 Melee 294 | . . . . . 11 12 7 71 10 9 2 21 151 Ram . | . . . . . . . . . . . . . . Kick . | . . . . . . . . . . . . . . Crush . | . . . . . . . . . . . . . . Escape Stasis 27 | . . . . . . . 1 8 . . . . 18 Rewire . | . . . . . . . . . . . . . . Trap 7 | . . . . . . . . . . . 7 . . Miscellaneous . | . . . . . . . . . . . . . . Route ------- -11/Scrapyard -10/Materials (discovered 3 exits: [*Mat x2] / *Min) -10/Mines (discovered 3 exits: [*Mat x2] / [*Exi]) -10/Exiles -9/Mines -8/Materials (discovered 3 exits: *Fac x3) -7/Factory (discovered 3 exits: *Fac / *Low x2) -7/Waste -7/Factory (discovered 4 exits: *Fac / *Sto x2 / *Low) -7/Lower Caves -7/Lower Caves -7/Data Miner -6/Proximity Caves -6/Factory (discovered 1 exit: *Low) History --------- Turn | Location | Event 16 | -11/Scrapyard | Discovered new exit (range 15) 71 | -11/Scrapyard | Entered Materials 119 | -10/Materials | Discovered new exit (range 11) 292 | -10/Materials | Discovered new exit (range 4) 305 | -10/Materials | Build established: Mutant 368 | -10/Materials | Discovered new exit (range 12) 621 | -10/Materials | Entered Mines 627 | -10/Mines | Assembled infested the area 968 | -10/Mines | Destroyed 7 combat bots 1019 | -10/Mines | Discovered new exit (range 8) 1032 | -10/Mines | Discovered new exit (range 8) 1278 | -10/Mines | Learned Materials terminal intel 1305 | -10/Mines | Received a Mining Laser from a helpful Derelict 1503 | -10/Mines | Deemed a non-threat by the Exiles lab entrance 1504 | -10/Mines | Discovered new exit (range 5) 1710 | -10/Mines | Entered Exiles 1735 | -10/Exiles | Met 8R-AWN 1751 | -10/Exiles | Met EX-HEX 1797 | -10/Exiles | Met EX-DEC 1995 | -10/Exiles | Met EX-BIN 2055 | -10/Exiles | Discovered new exit (range 10) 2066 | -10/Exiles | Entered Mines 2138 | -9/Mines | Build established: Hauler-Mutant 2217 | -9/Mines | Received a Rocket Launcher from a helpful Derelict 2355 | -9/Mines | Core integrity fell below 50% 2399 | -9/Mines | Lost 3 parts (1p1n1w) 2533 | -9/Mines | Found a damaged Exp. Sensor Array with a note attached 2538 | -9/Mines | Found Prototype Device 2990 | -9/Mines | Core integrity fell below 20% 3026 | -9/Mines | Lost 4 parts (1n3w) 3082 | -9/Mines | Learned Materials terminal intel 3086 | -9/Mines | Discovered new exit (range 7) 3098 | -9/Mines | Entered Materials 3098 | -8/Materials | Evolved 4 slots: Utility x4 3099 | -8/Materials | Identified exit to Factory 3100 | -8/Materials | Loaded intel: 12 terminal locations 3103 | -8/Materials | Identified Exp. Sensor Array 3542 | -8/Materials | Discovered exit to Factory (range 5) 4236 | -8/Materials | Lost 6 parts (1p2n2u1w) 4247 | -8/Materials | Destroyed 12 combat bots 4282 | -8/Materials | Discovered exit to Factory (range 16) 4712 | -8/Materials | Central database locked down 4740 | -8/Materials | Entered Factory 4740 | -7/Factory | Evolved 2 slots: Utility x2 5019 | -7/Factory | Discovered new exit (range 5) 5026 | -7/Factory | Identified exit to Lower Caves 5402 | -7/Factory | Fabricated Armor Integrity Analyzer? 5739 | -7/Factory | Lost 3 parts (1p2u) 6095 | -7/Factory | Discovered new exit (range 14) 6218 | -7/Factory | Discovered exit to Lower Caves (range 15) 6428 | -7/Factory | Fabricated Armor Integrity Analyzer (x1) 7033 | -7/Factory | Repaired Broken Arm. Wheel 7365 | -7/Factory | Sucked down chute 7365 | -7/Factory | Entered Waste 7436 | -7/Waste | Spotted C-40 Crusher 7463 | -7/Waste | Spotted C-40 Crusher 7476 | -7/Waste | Destroyed C-40 Crusher 7509 | -7/Waste | Spotted C-40 Crusher 7528 | -7/Waste | Crushed by falling debris 7536 | -7/Waste | Spotted C-40 Crusher 7674 | -7/Waste | Destroyed C-40 Crusher 7712 | -7/Waste | Destroyed C-40 Crusher 7720 | -7/Waste | Destroyed C-40 Crusher 7742 | -7/Waste | Found Damper Plating 7756 | -7/Waste | Found Damper Plating 7817 | -7/Waste | Spotted C-40 Crusher 7861 | -7/Waste | Spotted C-40 Crusher 7920 | -7/Waste | Destroyed C-40 Crusher 7940 | -7/Waste | Found Damper Plating 8013 | -7/Waste | Discovered new exit (range 13) 8028 | -7/Waste | Entered Factory 8109 | -7/Factory | Discovered exit to Lower Caves (range 12) 8429 | -7/Factory | Discovered new exit (range 13) 8483 | -7/Factory | Identified exit to Storage 8673 | -7/Factory | Discovered new exit (range 16) 8700 | -7/Factory | Identified exit to Factory 8982 | -7/Factory | System corruption reached 10% 9167 | -7/Factory | Discovered exit to Storage (range 11) 9754 | -7/Factory | Fabricated Armor Integrity Analyzer (x1) 9865 | -7/Factory | Destroyed 7 combat bots 11414 | -7/Factory | Entered Lower Caves 11940 | -7/Lower Caves | Learned location of 1 exit from Factory 12262 | -7/Lower Caves | Discovered new exit (range 8) 12270 | -7/Lower Caves | Identified exit to Lower Caves 12278 | -7/Lower Caves | Entered another Lower Caves area 12508 | -7/Lower Caves | Attracted the attention of an 0b10 checkpoint 12568 | -7/Lower Caves | Spotted B-75 Beast 12981 | -7/Lower Caves | Learned location of Extension (-5) 13391 | -7/Lower Caves | Attracted the attention of an 0b10 outpost 13446 | -7/Lower Caves | Lost 5 parts (1p2u2w) 13562 | -7/Lower Caves | Destroyed 7 combat bots 13568 | -7/Lower Caves | Lost 3 parts (1p1n1u) 13704 | -7/Lower Caves | Discovered new exit (range 6) 13752 | -7/Lower Caves | Identified exit to Data Miner 13753 | -7/Lower Caves | Entered Data Miner 13756 | -7/Data Miner | Discovered new exit (range 6) 13764 | -7/Data Miner | Identified exit to Proximity Caves 13782 | -7/Data Miner | Met Data Miner 13807 | -7/Data Miner | Learned location of Section 7 (-2) 13807 | -7/Data Miner | Acquired the access code to Warlord's prototype stash 13829 | -7/Data Miner | Received God Mode back door access code from Data Miner 14344 | -7/Data Miner | Build established: Scavenger-Mutant 14934 | -7/Data Miner | Destroyed Data Miner 14937 | -7/Data Miner | Interfaced with the Data Conduit 14940 | -7/Data Miner | Found Prototype Hackware 14942 | -7/Data Miner | Found Prototype Hackware 14945 | -7/Data Miner | Found Prototype Hackware 15136 | -7/Data Miner | Entered Proximity Caves 15180 | -6/Proximity Caves | Found Alien Artifact 15180 | -6/Proximity Caves | Identified Core Expander 15180 | -6/Proximity Caves | Installed Core Expander, added new Weapon slot 15307 | -6/Proximity Caves | Build established: Hauler-Mutant 15794 | -6/Proximity Caves | Discovered exit to Factory (range 10) 15829 | -6/Proximity Caves | Entered Factory 15829 | -6/Factory | Evolved 2 slots: Power x1, Utility x1 15830 | -6/Factory | Identified exit to Lower Caves 15831 | -6/Factory | Loaded intel: 241 machine locations 16216 | -6/Factory | Intercept squad dispatched 16236 | -6/Factory | Spotted Tracker 16250 | -6/Factory | Destroyed Tracker 16265 | -6/Factory | Found Prototype Energy Gun 16266 | -6/Factory | Identified Immobilizer 16321 | -6/Factory | Spotted Combat Programmer 16491 | -6/Factory | Destroyed Combat Programmer 17163 | -6/Factory | Crushed by falling debris 17425 | -6/Factory | Intercept squad dispatched 17436 | -6/Factory | Spotted Tracker 17436 | -6/Factory | Spotted Tracker 17453 | -6/Factory | Spotted Combat Programmer 17462 | -6/Factory | Destroyed Tracker 17472 | -6/Factory | Destroyed Tracker 17482 | -6/Factory | Spotted Combat Programmer 17509 | -6/Factory | Destroyed Combat Programmer 17718 | -6/Factory | Destroyed Combat Programmer 17827 | -6/Factory | Found Exp. Remote Datajack 17846 | -6/Factory | Found EMDS 17987 | -6/Factory | Identified System Mapper 18132 | -6/Factory | Intercept squad dispatched 18146 | -6/Factory | Spotted Tracker 18146 | -6/Factory | Spotted Tracker 18146 | -6/Factory | Spotted Tracker 18190 | -6/Factory | Spotted Combat Programmer 18194 | -6/Factory | Core integrity fell below 50% 18209 | -6/Factory | System corruption reached 10% 18216 | -6/Factory | Destroyed Combat Programmer 18229 | -6/Factory | Core integrity fell below 20% 18236 | -6/Factory | Destroyed Tracker 18237 | -6/Factory | Spotted Combat Programmer 18243 | -6/Factory | Destroyed by Tracker with Immobilizer Last Messages --------------- 18197_ Tracker suffers critical hit. 18198_ Tracker system terminally corrupted. 18199_ Penetrated by EMDS Slug. 18210_ Centrium Medium Armor Plating destroyed. 18210_ Axe destroyed. 18213_ Penetrated by EMDS Slug. 18215_ Combat Programmer resets U-05 Engineer, system corruption cleaned. 18216_ E4GMFYV0LRRX&AY>JLWEA7